bitfinex/quotes_ETHUSD_20250909
["timestamp","ask_amount","ask_price","bid_price","bid_amount"]
[1757414078961,56.69162868,4343.7,4343.6,43.27743777]
[1757414079860,57.92162868,4343.7,4343.6,43.27743777]
[1757414080519,57.92162868,4343.7,4343.6,39.34243777]
[1757414080660,57.92162868,4343.7,4343.6,39.35273777]
[1757414080865,57.92162868,4343.7,4343.6,43.26573777]
[1757414081414,59.15162868,4343.7,4343.6,43.26573777]
[1757414082588,60.38162868,4343.7,4343.6,43.26573777]
[1757414084028,61.61162868,4343.7,4343.6,43.26573777]
[1757414085002,61.61082868,4343.7,4343.6,44.91770932]
[1757414085404,62.84082868,4343.7,4343.6,44.91770932]
[1757414085913,62.84082868,4343.7,4343.6,43.91770932]
[1757414086734,64.07082868,4343.7,4343.6,43.91770932]
[1757414088090,65.30082868,4343.7,4343.6,43.91770932]
[1757414089352,65.30082868,4343.7,4343.6,40.00470932]
[1757414089562,66.53082868,4343.7,4343.6,43.91070932]
[1757414089973,66.53082868,4343.7,4343.6,43.91270932]
[1757414091035,67.76082868,4343.7,4343.6,43.91270932]
[1757414092273,68.99082868,4343.7,4343.6,40.00670932]
[1757414092614,68.99082868,4343.7,4343.6,42.25973777]
[1757414093992,70.22082868,4343.7,4343.6,42.25973777]
[1757414094557,70.22082868,4343.7,4343.6,41.81503777]
[1757414094757,70.22082868,4343.7,4343.6,36.18663777]
[1757414095100,70.22082868,4343.7,4343.6,40.09163777]
[1757414095395,71.45082868,4343.7,4343.6,40.09163777]
[1757414096006,71.45082868,4343.7,4343.6,42.32233777]
[1757414096813,72.68082868,4343.7,4343.6,42.32233777]
[1757414098605,73.91082868,4343.7,4343.6,42.32233777]
[1757414100357,75.14082868,4343.7,4343.6,42.32233777]
[1757414101675,75.14082868,4343.7,4343.6,43.01266343]
[1757414101889,76.37082868,4343.7,4343.6,43.01266343]
[1757414102766,74.18190718,4343.7,4343.6,43.01266343]
[1757414102960,62.32103839,4343.7,4343.6,43.80466343]
[1757414103162,63.55103839,4343.7,4343.6,43.80466343]
[1757414103611,58.93899205,4343.7,4343.6,43.80466343]
[1757414103761,45.10285303,4343.7,4343.6,43.80466343]
[1757414104378,46.33285303,4343.7,4343.6,43.80466343]
[1757414104604,44.5802046,4343.7,4343.6,43.80466343]
[1757414104908,37.56961088,4343.7,4343.6,43.80466343]
[1757414105784,38.79961088,4343.7,4343.6,43.80466343]
[1757414106695,1e-08,4344.2,4344.1,3.09397279]
[1757414106866,1e-08,4344.2,4344.1,10.11337279]
[1757414107072,1e-08,4344.2,4344.1,40.42987279]
[1757414107290,1e-08,4344.2,4344.1,42.36237279]
[1757414107884,1e-08,4344.2,4344.1,44.42713299]
[1757414108666,1.23000001,4344.2,4344.1,44.42713299]
[1757414110075,2.46000001,4344.2,4344.1,44.42713299]
[1757414110768,2.46000001,4344.2,4344.1,42.36237279]
[1757414110968,2.45920001,4344.2,4344.1,42.36237279]
[1757414111184,2.45920001,4344.2,4344.1,44.42713299]
[1757414111670,3.68920001,4344.2,4344.1,44.42713299]
[1757414112308,3.68920001,4344.2,4344.1,42.36237279]
[1757414113010,4.91920001,4344.2,4344.1,42.36237279]
[1757414113416,4.91920001,4344.2,4344.1,43.05253328]
[1757414114400,6.14920001,4344.2,4344.1,43.05253328]
[1757414114613,6.14920001,4344.2,4344.1,39.14753328]
[1757414114810,6.41410001,4344.2,4344.1,40.01053328]
[1757414115621,6.14920001,4344.2,4344.1,40.01053328]
[1757414115938,7.37920001,4344.2,4344.1,40.76733328]
[1757414116112,7.37920001,4344.2,4344.1,40.01053328]
[1757414116439,7.37920001,4344.2,4344.1,36.10653328]
[1757414116591,7.37920001,4344.2,4344.1,40.01053328]
[1757414117188,8.60920001,4344.2,4344.1,40.01053328]
[1757414117863,8.60920001,4344.2,4344.1,40.45083328]
[1757414118010,8.60920001,4344.2,4344.1,40.76733328]
[1757414118196,8.60920001,4344.2,4344.1,42.25953328]
[1757414118696,9.83920001,4344.2,4344.1,42.25953328]
[1757414119909,11.06920001,4344.2,4344.1,12.25953328]
[1757414120235,11.06920001,4344.2,4344.1,42.25953328]
[1757414121062,11.06920001,4344.2,4344.1,43.301889]
[1757414121368,12.29920001,4344.2,4344.1,43.301889]
[1757414121569,12.29920001,4344.2,4344.1,43.05153328]
[1757414122748,13.52920001,4344.2,4344.1,43.05153328]
[1757414123812,13.52920001,4344.2,4344.1,43.05353328]
[1757414124011,14.76020001,4344.2,4344.1,43.05353328]
[1757414124515,14.76020001,4344.2,4344.1,40.80453328]
[1757414124964,14.76020001,4344.2,4344.1,41.24483328]
[1757414125407,15.99020001,4344.2,4344.1,41.24483328]
[1757414126067,15.99020001,4344.2,4344.1,42.73703328]
[1757414126278,15.99020001,4344.2,4344.1,43.05353328]
[1757414126821,17.31920001,4344.2,4344.1,40.01153328]
[1757414127435,17.22020001,4344.2,4344.1,40.01153328]
[1757414127727,17.22020001,4344.2,4344.1,42.26053328]
[1757414128241,18.45020001,4344.2,4344.1,43.05253328]
[1757414129361,15.34542693,4344.2,4344.1,45.11729348]
[1757414129569,16.57542693,4344.2,4344.1,45.11729348]
[1757414129752,16.57542693,4344.2,4344.1,43.05253328]
[1757414130896,17.80542693,4344.2,4344.1,43.05253328]
[1757414131444,17.80542693,4344.2,4344.1,45.11729348]
[1757414132565,0.001,4344.6,4344.5,2.30176084]
[1757414132863,0.001,4344.6,4344.5,41.87616084]
[1757414133106,0.001,4344.6,4344.5,44.21336084]
[1757414133266,0.001,4344.6,4344.5,44.30537483]
[1757414133965,1.231,4344.6,4344.5,44.30537483]
[1757414135373,2.461,4344.6,4344.5,44.30537483]
[1757414136189,2.461,4344.6,4344.5,14.30537483]
[1757414136391,2.461,4344.6,4344.5,44.30537483]
[1757414136678,2.461,4344.6,4344.5,49.82337483]
[1757414136861,3.691,4344.6,4344.5,49.82337483]
[1757414137408,3.6902,4344.6,4344.5,49.82337483]
[1757414138193,4.9202,4344.6,4344.5,49.82337483]
[1757414139023,4.9202,4344.6,4344.5,48.22887483]
[1757414139705,6.1502,4344.6,4344.5,48.22887483]
[1757414140103,6.1502,4344.6,4344.5,49.82337483]
[1757414140961,7.3802,4344.6,4344.5,49.82337483]
[1757414142411,8.6102,4344.6,4344.5,49.82337483]
[1757414143577,9.8402,4344.6,4344.5,49.82337483]
[1757414144515,9.8402,4344.6,4344.5,47.48617483]
[1757414145162,11.0702,4344.6,4344.5,47.48617483]
[1757414146156,11.0702,4344.6,4344.5,47.92147483]
[1757414146469,11.0702,4344.6,4344.5,49.51597483]
[1757414146604,12.3002,4344.6,4344.5,45.92137483]
[1757414146814,12.3002,4344.6,4344.5,49.82237483]
[1757414147267,12.3002,4344.6,4344.5,45.92137483]
[1757414147430,12.3002,4344.6,4344.5,49.51497483]
[1757414147607,12.3002,4344.6,4344.5,47.92047483]
[1757414148252,13.5302,4344.6,4344.5,47.92047483]
[1757414148660,13.5302,4344.6,4344.5,49.82237483]
[1757414150047,14.7602,4344.6,4344.5,49.82237483]
[1757414150343,14.7602,4344.6,4344.5,19.82237483]
[1757414150645,14.7602,4344.6,4344.5,51.88713503]
[1757414151319,15.9902,4344.6,4344.5,51.88713503]
[1757414153246,17.2202,4344.6,4344.5,51.88713503]
[1757414154616,18.4502,4344.6,4344.5,49.82237483]
[1757414156056,19.6802,4344.6,4344.5,49.82237483]
[1757414156856,19.6802,4344.6,4344.5,50.05247483]
[1757414157562,20.9102,4344.6,4344.5,50.05247483]
[1757414158022,15.99,4344.6,4344.5,50.05247483]
[1757414158218,10.30355972,4344.6,4344.5,50.05247483]
[1757414158417,10.30355972,4344.6,4344.5,20.05247483]
[1757414158618,10.30355972,4344.6,4344.5,50.05247483]
[1757414159118,11.53355972,4344.6,4344.5,50.05247483]
[1757414159317,2.18061418,4344.6,4344.5,50.05247483]
[1757414159514,0.025,4344.8,4344.7,3.09365488]
[1757414159718,0.025,4344.8,4344.7,39.99265488]
[1757414159949,0.025,4344.8,4344.7,42.32985488]
[1757414160147,0.025,4344.8,4344.7,43.01991695]
[1757414160571,1.255,4344.8,4344.7,42.71251695]
[1757414161877,2.485,4344.8,4344.7,42.71251695]
[1757414162264,2.485,4344.8,4344.7,43.00871695]
[1757414163160,0.001,4345.5,4345.0,2.30149597]
[1757414163472,3.6902,4345.1,4345.0,39.20049597]
[1757414163630,3.7892,4345.1,4345.0,39.31489597]
[1757414163964,3.7892,4345.1,4345.0,40.00495805]
[1757414164572,5.0192,4345.1,4345.0,40.00495805]
[1757414165594,5.0192,4345.1,4345.0,41.76995805]
[1757414166096,6.2492,4345.1,4345.0,41.76995805]
[1757414166396,6.1502,4345.1,4345.0,41.76995805]
[1757414167244,6.1502,4345.1,4345.0,42.23615805]
[1757414167464,7.3802,4345.1,4345.0,42.23615805]
[1757414168971,8.6102,4345.1,4345.0,42.23615805]
[1757414169281,8.6102,4345.1,4345.0,41.76995805]
[1757414170176,49.2002,4345.7,4345.2,2.30139003]
[1757414170338,49.2002,4345.7,4345.6,0.1144]
[1757414170540,49.2002,4345.7,4345.6,39.3135782]
[1757414170844,49.2002,4345.7,4345.6,40.00355139]
[1757414171345,49.2002,4345.7,4345.6,40.58206886]
[1757414171545,50.4302,4345.7,4345.6,40.58206886]
[1757414172487,51.4387,4345.7,4345.6,33.68997319]
[1757414172788,51.4387,4345.7,4345.6,39.88815139]
[1757414172997,52.6687,4345.7,4345.6,39.88815139]
[1757414173338,52.6687,4345.7,4345.6,3.68997319]
[1757414173543,54.93660797,4345.7,4345.6,8.662]
[1757414174290,52.6687,4345.7,4345.6,8.662]
[1757414174435,53.8987,4345.7,4345.6,8.662]
[1757414175782,55.1287,4345.7,4345.6,4.765]
[1757414176009,55.1287,4345.7,4345.6,8.662]
[1757414177086,56.3587,4345.7,4345.6,8.662]
[1757414177240,60.92773322,4345.7,4345.6,1.765]
[1757414177446,60.92773322,4345.7,4345.6,5.662]
[1757414177698,60.92773322,4345.7,4345.6,1.765]
[1757414177993,60.92773322,4345.7,4344.9,1.765]
[1757414177994,2.30144851,4345.1,4344.9,1.765]
[1757414178249,58.62660797,4345.7,4344.9,1.765]
[1757414178250,0.0997,4345.0,4344.9,1.765]
[1757414178421,1.0085,4345.0,4344.9,5.662]
[1757414178619,1.0085,4345.0,4344.9,8.662]
[1757414179681,1.23,4345.1,4345.0,2.30149597]
[1757414179874,1.23,4345.1,4345.0,32.76769597]
[1757414180272,1.23,4345.1,4345.0,35.76769597]
[1757414180476,1.23,4345.1,4345.0,35.30149597]
[1757414181260,2.46,4345.1,4345.0,35.30149597]
[1757414181461,2.559,4345.1,4345.0,3.0]
[1757414181657,2.46,4345.1,4345.0,41.69959597]
[1757414181976,2.46,4345.1,4345.0,42.38971678]
[1757414182487,2.46,4345.1,4345.0,42.50411678]
[1757414182796,3.69,4345.1,4345.0,42.50411678]
[1757414183976,4.92,4345.1,4345.0,44.15508456]
[1757414184508,5.019,4345.1,4345.0,10.00201678]
[1757414184860,5.019,4345.1,4345.0,3.1144]
[1757414185092,6.4304,4345.1,4345.0,3.896]
[1757414185266,6.2635,4345.1,4345.0,3.896]
[1757414185600,7.4935,4345.1,4345.0,3.896]
[1757414185823,6.7509,4345.1,4345.0,3.896]
[1757414186546,6.7509,4345.1,4345.0,6.896]
[1757414186708,7.9809,4345.1,4345.0,6.896]
[1757414188012,7.479,4345.1,4345.0,6.896]
[1757414188221,8.61,4345.1,4345.0,9.19749597]
[1757414188404,8.61,4345.1,4345.0,6.896]
[1757414188601,8.709,4345.1,4345.0,6.896]
[1757414189000,8.709,4345.1,4345.0,9.19749597]
[1757414189199,8.709,4345.1,4345.0,6.896]
[1757414189496,9.9382,4345.1,4345.0,6.896]
[1757414191129,11.1682,4345.1,4345.0,6.896]
[1757414191828,11.0692,4345.1,4345.0,6.896]
[1757414192043,11.1689,4345.1,4345.0,6.896]
[1757414192530,12.3989,4345.1,4345.0,6.896]
[1757414192832,13.83114147,4345.1,4345.0,6.895]
[1757414192996,13.83114147,4345.1,4345.0,3.0]
[1757414193191,13.83114147,4345.1,4345.0,6.895]
[1757414193621,13.08854147,4345.1,4345.0,6.895]
[1757414193822,14.15234147,4345.1,4345.0,6.895]
[1757414194358,16.45378447,4345.1,4345.0,3.0]
[1757414194660,14.31854147,4345.1,4345.0,6.895]
[1757414194836,14.15234147,4345.1,4345.0,6.897]
[1757414195240,17.84998447,4345.1,4345.0,6.897]
[1757414195559,17.68378447,4345.1,4345.0,3.002]
[1757414195722,15.38234147,4345.1,4345.0,6.897]
[1757414196742,16.61234147,4345.1,4345.0,6.897]
[1757414197249,18.91378447,4345.1,4345.0,0.002]
[1757414197450,19.82258447,4345.1,4345.0,3.897]
[1757414198121,19.82258447,4345.1,4345.0,0.002]
[1757414198122,21.05258447,4345.1,4345.0,0.002]
[1757414198537,21.84458447,4345.1,4345.0,0.002]
[1757414199343,23.07458447,4345.1,4345.0,0.002]
[1757414200569,26.96958447,4345.1,4345.0,0.002]
[1757414200869,27.29078447,4345.1,4345.0,0.002]
[1757414202371,28.52078447,4345.1,4345.0,0.002]
[1757414203861,29.75078447,4345.1,4345.0,0.002]
[1757414205371,30.98078447,4345.1,4345.0,0.002]
[1757414206985,32.21078447,4345.1,4345.0,0.002]
[1757414208465,33.44078447,4345.1,4345.0,0.002]
[1757414209865,34.67078447,4345.1,4345.0,0.002]
[1757414211299,35.90078447,4345.1,4345.0,0.002]
[1757414211866,35.80108447,4345.1,4345.0,0.002]
[1757414212567,35.80208447,4345.1,4345.0,0.002]
[1757414212796,37.13108447,4345.1,4345.0,0.002]
[1757414214403,38.36108447,4345.1,4345.0,0.002]
[1757414215812,39.59028447,4345.1,4345.0,0.002]
[1757414216186,39.49128447,4345.1,4345.0,0.002]
[1757414217372,40.72128447,4345.1,4345.0,0.002]
[1757414218717,41.95128447,4345.1,4345.0,0.002]
[1757414219072,34.4394,4345.1,4345.0,0.2935]
[1757414219425,34.4394,4345.1,4345.0,2.4744]
[1757414220015,36.740843,4345.1,4345.0,2.4744]
[1757414220211,37.970843,4345.1,4345.0,2.4744]
[1757414220386,35.6694,4345.1,4345.0,2.4744]
[1757414221711,39.200843,4345.1,4345.0,2.4744]
[1757414222274,41.56775097,4345.1,4345.0,0.002]
[1757414222771,41.46875097,4345.1,4345.0,0.002]
[1757414222977,40.430843,4345.1,4345.0,0.002]
[1757414223173,40.430843,4345.1,4345.0,0.4428]
[1757414223427,40.430843,4345.1,4345.0,0.7499]
[1757414223574,38.1294,4345.1,4345.0,2.6009]
[1757414223773,38.1294,4345.1,4345.0,6.4929]
[1757414224414,39.3594,4345.1,4345.0,6.4929]
[1757414225785,40.5894,4345.1,4345.0,6.4929]
[1757414227183,41.8194,4345.1,4345.0,6.4929]
[1757414228939,43.0494,4345.1,4345.0,6.4929]
[1757414230641,44.2794,4345.1,4345.0,6.4929]
[1757414232044,45.5094,4345.1,4345.0,6.4929]
[1757414233429,46.7394,4345.1,4345.0,6.4929]
[1757414234871,47.9694,4345.1,4345.0,6.4929]
[1757414235481,47.9694,4345.1,4345.0,4.6419]
[1757414235690,50.270843,4345.1,4345.0,3.894]
[1757414237636,53.38839801,4345.1,4345.0,3.892]
[1757414239278,54.61839801,4345.1,4345.0,3.892]
[1757414240679,53.28205501,4345.1,4345.0,4.160403]
[1757414240835,52.8894,4345.1,4345.0,6.318503]
[1757414241747,52.8894,4345.1,4345.0,3.719603]
[1757414241939,56.420043,4345.1,4345.0,3.719603]
[1757414242485,54.1186,4345.1,4345.0,3.719603]
[1757414242779,56.42004657,4345.1,4345.0,3.89]
[1757414243336,57.65004657,4345.1,4345.0,3.89]
[1757414245058,58.88004657,4345.1,4345.0,3.89]
[1757414245655,56.5786,4345.1,4345.0,4.6379]
[1757414246021,56.5786,4345.1,4345.0,6.4889]
[1757414246453,57.8086,4345.1,4345.0,6.4889]
[1757414247846,59.0386,4345.1,4345.0,6.4889]
[1757414248745,59.0386,4345.1,4345.0,6.4909]
[1757414249481,60.2686,4345.1,4345.0,6.4909]
[1757414250658,61.4986,4345.1,4345.0,6.4909]
[1757414252090,62.7286,4345.1,4345.0,6.4909]
[1757414253378,63.9586,4345.1,4345.0,6.4909]
[1757414254400,63.9586,4345.1,4345.0,9.4909]
[1757414254825,65.1886,4345.1,4345.0,9.4909]
[1757414255223,65.1886,4345.1,4345.0,7.3328]
[1757414255421,67.490043,4345.1,4345.0,6.892]
[1757414255582,67.589043,4345.1,4345.0,6.892]
[1757414255982,65.2876,4345.1,4345.0,6.892]
[1757414256168,66.5176,4345.1,4345.0,6.892]
[1757414256369,66.4186,4345.1,4345.0,6.892]
[1757414257488,67.6486,4345.1,4345.0,6.892]
[1757414258129,67.6486,4345.1,4345.0,9.472]
[1757414258919,68.8786,4345.1,4345.0,9.472]
[1757414260589,70.1086,4345.1,4345.0,9.472]
[1757414260969,70.1086,4345.1,4345.0,5.582]
[1757414261461,70.1086,4345.1,4345.0,9.468]
[1757414262044,71.3386,4345.1,4345.0,9.468]
[1757414263474,72.5686,4345.1,4345.0,9.468]
[1757414264668,73.7986,4345.1,4345.0,9.468]
[1757414265967,75.0286,4345.1,4345.0,9.468]
[1757414266742,75.0286,4345.1,4345.0,11.76949597]
[1757414266942,75.0286,4345.1,4345.0,11.88389597]
[1757414267345,76.2586,4345.1,4345.0,11.88389597]
[1757414268074,76.2578,4345.1,4345.0,11.88389597]
[1757414269181,77.4878,4345.1,4345.0,11.88389597]
[1757414269557,77.4878,4345.1,4345.0,41.88389597]
[1757414270589,78.7178,4345.1,4345.0,41.88389597]
[1757414272406,79.9478,4345.1,4345.0,41.88389597]
[1757414273811,81.1778,4345.1,4345.0,41.88389597]
[1757414275413,82.4078,4345.1,4345.0,41.88389597]
[1757414276824,83.6378,4345.1,4345.0,41.88389597]
[1757414278429,84.8678,4345.1,4345.0,41.88389597]
[1757414280449,86.0978,4345.1,4345.0,41.88389597]
[1757414280748,86.0978,4345.1,4345.0,44.22498456]
[1757414281143,86.0978,4345.1,4345.0,43.53486375]
[1757414281526,87.3278,4345.1,4345.0,41.88389597]
[1757414282558,87.3278,4345.1,4345.0,42.57401677]
[1757414283003,88.5578,4345.1,4345.0,42.57401677]
[1757414284343,89.7878,4345.1,4345.0,42.57401677]
[1757414285687,91.0178,4345.1,4345.0,42.57401677]
[1757414287087,92.2478,4345.1,4345.0,42.57401677]
[1757414288787,93.4778,4345.1,4345.0,42.57401677]
[1757414290786,94.7078,4345.1,4345.0,42.57401677]
[1757414291563,6.15,4345.1,4345.0,42.57401677]
[1757414291814,0.001,4345.6,4345.5,2.30123115]
[1757414291985,0.001,4345.6,4345.5,37.06623115]
[1757414292187,0.001,4345.6,4345.5,43.59233115]
[1757414292409,0.001,4345.6,4345.5,44.28232021]
[1757414294416,0.0002,4345.6,4345.5,44.28232021]
[1757414294932,1.2302,4345.6,4345.5,44.28232021]
[1757414295611,1.2302,4345.6,4345.5,40.40232021]
[1757414295910,1.2302,4345.6,4345.5,44.28232021]
[1757414296272,2.4602,4345.6,4345.5,44.28232021]
[1757414297703,3.6902,4345.6,4345.5,44.28232021]
[1757414299547,4.9202,4345.6,4345.5,44.28232021]
[1757414299765,4.9202,4345.6,4345.5,44.28432021]
[1757414300818,6.1502,4345.6,4345.5,44.28432021]
[1757414302166,7.3802,4345.6,4345.5,44.28432021]
[1757414303753,8.6102,4345.6,4345.5,44.28432021]
[1757414305864,52.24642013,4345.7,4345.6,6.0931782]
[1757414306084,52.24642013,4345.7,4345.6,39.9711782]
[1757414306376,52.24642013,4345.7,4345.6,42.5028782]
[1757414306573,52.24642013,4345.7,4345.6,43.19277682]
[1757414307182,53.47642013,4345.7,4345.6,43.19277682]
[1757414307478,53.47642013,4345.7,4345.6,45.25534545]
[1757414308745,54.70642013,4345.7,4345.6,45.25534545]
[1757414308946,54.70642013,4345.7,4345.6,43.19277682]
[1757414310178,55.93642013,4345.7,4345.6,43.19277682]
[1757414311594,57.16642013,4345.7,4345.6,43.19277682]
[1757414312890,58.39642013,4345.7,4345.6,43.19277682]
[1757414314009,58.39642013,4345.7,4345.6,43.42287682]
[1757414314210,59.62642013,4345.7,4345.6,43.19277682]
[1757414315175,59.62642013,4345.7,4345.6,43.42287682]
[1757414315696,59.62642013,4345.7,4345.6,43.53727682]
[1757414315999,60.85642013,4345.7,4345.6,43.53727682]
[1757414317300,62.08642013,4345.7,4345.6,43.53727682]
[1757414318809,63.31642013,4345.7,4345.6,43.53727682]
[1757414319984,64.54642013,4345.7,4345.6,43.53727682]
[1757414320186,64.54562013,4345.7,4345.6,43.53727682]
[1757414320924,61.34710363,4345.7,4345.6,43.53727682]
[1757414321528,62.57710363,4345.7,4345.6,43.53727682]
[1757414322990,63.80710363,4345.7,4345.6,43.53727682]
[1757414324325,65.03710363,4345.7,4345.6,43.53727682]
[1757414325720,66.26710363,4345.7,4345.6,43.53727682]
[1757414327328,67.49710363,4345.7,4345.6,43.53727682]
[1757414327638,63.66122415,4345.7,4345.6,43.53727682]
[1757414328078,61.74328441,4345.7,4345.6,46.42302628]
[1757414328737,55.93004797,4345.7,4345.6,46.42302628]
[1757414328917,51.58565483,4345.7,4345.6,46.42302628]
[1757414329121,51.58565483,4345.7,4345.6,43.53727682]
[1757414329333,51.58565483,4345.7,4345.6,46.42783456]
[1757414329974,39.25439182,4345.7,4345.6,46.42783456]
[1757414330120,15.8218658,4345.7,4345.6,46.42783456]
[1757414331477,17.0518658,4345.7,4345.6,46.42783456]
[1757414331761,17.0518658,4345.7,4345.6,43.53727682]
[1757414333538,1e-08,4345.7,4345.6,43.53727682]
[1757414334422,1e-08,4345.7,4345.6,43.53927682]
[1757414334635,0.00100001,4345.7,4345.6,43.53927682]
[1757414335050,1.23100001,4345.7,4345.6,43.53927682]
[1757414335262,1e-08,4345.7,4345.6,43.53927682]
[1757414336472,1.23000001,4345.7,4345.6,49.05527682]
[1757414336903,1e-08,4345.7,4345.6,49.05527682]
[1757414337996,1e-08,4346.1,4346.0,1.0221]
[1757414338199,1e-08,4346.1,4346.0,42.3753664]
[1757414338518,1e-08,4346.1,4346.0,44.8640664]
[1757414338694,1e-08,4346.1,4346.0,45.55378103]
[1757414338855,1.23000001,4346.1,4346.0,45.55378103]
[1757414339055,1.23000001,4346.1,4346.0,15.55378103]
[1757414339262,0.026,4346.8,4346.1,6.30941346]
[1757414339461,0.026,4346.8,4346.1,43.07172583]
[1757414339661,0.026,4346.8,4346.1,45.56042583]
[1757414339896,0.026,4346.8,4346.1,43.35882809]
[1757414340354,31.981,4346.2,4346.1,43.35882809]
[1757414341781,33.211,4346.2,4346.1,43.35882809]
[1757414342650,0.026,4346.8,4346.3,3.09277394]
[1757414342760,0.026,4346.8,4346.5,4.1074]
[1757414342960,0.026,4346.8,4346.5,38.9731]
[1757414343266,0.026,4346.8,4346.5,41.96347828]
[1757414343467,0.026,4346.8,4346.5,39.19377828]
[1757414344422,1.33,4346.6,4346.5,39.19377828]
[1757414344582,1.231,4346.6,4346.5,43.06377828]
[1757414344777,2.461,4346.6,4346.5,43.06377828]
[1757414345902,2.461,4346.6,4346.5,43.23740015]
[1757414346212,2.461,4346.6,4346.5,46.00710015]
[1757414346420,3.6902,4346.6,4346.5,46.00710015]
[1757414347831,1.41230802,4346.6,4346.5,46.25746538]
[1757414348019,0.026,4346.8,4346.6,6.57311401]
[1757414348179,0.026,4346.8,4346.6,42.89641401]
[1757414348518,0.026,4346.8,4346.7,6.32269585]
[1757414348675,0.026,4346.8,4346.7,42.86406108]
[1757414348877,0.026,4346.8,4346.7,43.21176108]
[1757414349084,1.256,4346.8,4346.7,43.21176108]
[1757414349437,1e-08,4346.8,4346.7,43.21176108]
[1757414350521,1.23000001,4346.8,4346.7,46.09863899]
[1757414351294,1e-08,4346.8,4346.7,43.21176108]
[1757414351848,1e-08,4346.8,4346.7,46.09863899]
[1757414352545,1e-08,4346.8,4346.7,43.21176108]
[1757414352949,1e-08,4346.8,4346.7,43.30370654]
[1757414353250,1e-08,4346.8,4346.7,13.30370654]
[1757414353553,0.00100001,4346.8,4346.7,43.30370654]
[1757414354715,1.23100001,4346.8,4346.7,43.30370654]
[1757414355061,1.23100001,4346.8,4346.7,43.05334131]
[1757414355419,1e-08,4346.8,4346.7,43.05334131]
[1757414356857,1.23000001,4346.8,4346.7,43.05334131]
[1757414357449,1e-08,4346.8,4346.7,45.94021922]
[1757414359317,1e-08,4346.8,4346.7,15.94021922]
[1757414359518,1e-08,4346.8,4346.7,45.94021922]
[1757414359867,1e-08,4346.8,4346.7,43.05334131]
[1757414360359,0.001,4347.3,4346.8,36.32264292]
[1757414360515,0.001,4347.3,4346.8,45.52961992]
[1757414360715,0.001,4347.3,4346.8,45.95941992]
[1757414361317,1.27,4346.9,4346.8,45.95941992]
[1757414362723,0.001,4347.3,4347.1,2.53048416]
[1757414362920,0.001,4347.3,4347.1,42.508488]
[1757414363167,0.001,4347.3,4347.1,45.36958416]
[1757414363369,0.001,4347.3,4347.1,45.46151715]
[1757414364450,1e-08,4347.3,4347.2,6.32243124]
[1757414364762,1e-08,4347.3,4347.2,42.40253124]
[1757414365136,1e-08,4347.3,4347.2,43.0920287]
[1757414365342,1e-08,4347.3,4347.2,43.4074287]
[1757414365953,1.23000001,4347.3,4347.2,43.4074287]
[1757414366571,0.001,4347.7,4347.6,3.3222196]
[1757414366797,0.001,4347.7,4347.6,47.9982196]
[1757414366999,0.1,4347.7,4347.6,48.1126196]
[1757414367176,0.1,4347.7,4347.6,48.80211706]
[1757414367500,1.33,4347.7,4347.6,48.80211706]
[1757414368204,1.255,4347.8,4347.7,5.3000667]
[1757414368501,1.255,4347.8,4347.7,39.3951667]
[1757414368657,1.354,4347.8,4347.7,39.3951667]
[1757414368863,1.354,4347.8,4347.7,40.08466416]
[1757414369897,1.255,4347.8,4347.7,40.08466416]
[1757414370055,2.485,4347.8,4347.7,40.53476416]
[1757414370560,2.485,4347.8,4347.7,10.08466416]
[1757414370872,2.485,4347.8,4347.7,40.08466416]
[1757414371700,3.715,4347.8,4347.7,40.08466416]
[1757414372696,3.7142,4347.8,4347.7,40.08466416]
[1757414372902,4.9442,4347.8,4347.7,40.08466416]
[1757414373277,4.9442,4347.8,4347.7,40.55116416]
[1757414373478,4.9442,4347.8,4347.7,43.93406416]
[1757414373883,4.9442,4347.8,4347.7,46.82055789]
[1757414374319,6.1742,4347.8,4347.7,46.82055789]
[1757414375953,7.4042,4347.8,4347.7,46.82055789]
[1757414377109,7.4042,4347.8,4347.7,44.52765789]
[1757414377307,8.6342,4347.8,4347.7,44.52765789]
[1757414377903,8.6342,4347.8,4347.7,46.82055789]
[1757414378812,9.8642,4347.8,4347.7,46.82055789]
[1757414379547,9.8642,4347.8,4347.7,44.52765789]
[1757414380314,11.0942,4347.8,4347.7,44.52765789]
[1757414381999,12.3242,4347.8,4347.7,44.52765789]
[1757414383575,13.5542,4347.8,4347.7,44.52765789]
[1757414384995,14.7842,4347.8,4347.7,44.52765789]
[1757414385565,14.7842,4347.8,4347.7,41.64116416]
[1757414386283,14.7842,4347.8,4347.7,44.52951834]
[1757414386484,16.0142,4347.8,4347.7,44.52951834]
[1757414386684,16.0142,4347.8,4347.7,41.64116416]
[1757414387481,16.0142,4347.8,4347.7,44.53036894]
[1757414387791,16.0142,4347.8,4347.7,14.53036894]
[1757414387998,17.2442,4347.8,4347.7,44.53036894]
[1757414388169,17.2442,4347.8,4347.7,46.82326894]
[1757414388586,17.2452,4347.8,4347.7,43.93406416]
[1757414388767,17.2452,4347.8,4347.7,13.93406416]
[1757414388971,17.2452,4347.8,4347.7,43.93406416]
[1757414389322,12.90281132,4347.8,4347.7,43.93406416]
[1757414389629,14.13281132,4347.8,4347.7,43.93406416]
[1757414391016,15.36281132,4347.8,4347.7,43.93406416]
[1757414392058,15.46181132,4347.8,4347.7,37.01166416]
[1757414392328,15.46181132,4347.8,4347.7,40.87266416]
[1757414392494,16.69181132,4347.8,4347.7,37.01166416]
[1757414392824,16.69181132,4347.8,4347.7,10.87266416]
[1757414393014,16.69181132,4347.8,4347.7,40.87266416]
[1757414393794,17.92181132,4347.8,4347.7,40.87266416]
[1757414394288,19.94531132,4347.8,4347.7,37.75356416]
[1757414394488,20.11221132,4347.8,4347.7,44.50771392]
[1757414394846,19.94531132,4347.8,4347.7,45.29971392]
[1757414394989,17.92181132,4347.8,4347.7,42.40656416]
[1757414395185,19.15181132,4347.8,4347.7,42.40656416]
[1757414395388,19.15181132,4347.8,4347.7,45.29971392]
[1757414396233,19.15181132,4347.8,4347.7,42.40656416]
[1757414396692,20.38181132,4347.8,4347.7,42.40656416]